bitfinex/quotes_BTCUSD_20260126
["timestamp","ask_amount","ask_price","bid_price","bid_amount"]
[1769410666081,0.46596316,87950.0,87930.0,0.46618911]
[1769410666319,0.01136945,87955.0,87930.0,0.46618911]
[1769410666320,0.01136957,87954.0,87930.0,0.46618911]
[1769410666723,0.01136957,87954.0,87930.0,0.46602151]
[1769410667111,0.01136957,87954.0,87930.0,0.47739419]
[1769410667782,0.01136945,87955.0,87931.0,0.01137255]
[1769410667928,0.01136957,87954.0,87930.0,0.47739419]
[1769410668662,0.000199,87957.0,87931.0,0.01137255]
[1769410669489,0.000199,87957.0,87933.0,0.01137229]
[1769410669711,0.01156819,87957.0,87933.0,0.01137229]
[1769410669871,0.000199,87957.0,87935.0,0.01137203]
[1769410670075,0.000199,87957.0,87940.0,0.47733454]
[1769410670270,0.000199,87957.0,87940.0,0.46596316]
[1769410671983,0.000199,87957.0,87940.0,0.47733454]
[1769410672185,0.04552,87963.0,87940.0,0.46596316]
[1769410672387,0.05688841,87963.0,87940.0,0.46611856]
[1769410672788,0.04552,87963.0,87940.0,0.47748994]
[1769410672996,0.05688841,87963.0,87940.0,0.46611856]
[1769410673192,0.01136828,87964.0,87940.0,0.47748994]
[1769410673400,0.01136841,87963.0,87940.0,0.46611856]
[1769410673799,0.01136828,87964.0,87940.0,0.47748994]
[1769410674271,0.21495148,87968.0,87940.0,0.47748994]
[1769410674464,0.15811233,87968.0,87940.0,0.46611856]
[1769410675501,0.00198831,87969.0,87940.0,0.46611856]
[1769410675697,0.05684098,87965.0,87940.0,0.46611856]
[1769410675915,0.01136841,87963.0,87940.0,0.46611856]
[1769410676533,0.01136854,87962.0,87940.0,0.46611856]
[1769410677441,0.01136867,87961.0,87940.0,0.46611856]
[1769410677691,0.01136906,87958.0,87940.0,0.0001554]
[1769410677879,0.01136919,87957.0,87940.0,0.46611856]
[1769410678150,0.47733196,87960.0,87940.0,0.46611856]
[1769410678316,0.47733196,87960.0,87940.0,0.0001554]
[1769410679503,0.01136893,87959.0,87940.0,0.0001554]
[1769410680103,0.01136919,87957.0,87940.0,0.0001554]
[1769410680500,0.01136945,87955.0,87940.0,0.0001554]
[1769410680687,0.01136957,87954.0,87940.0,0.0001554]
[1769410681066,0.0113697,87953.0,87940.0,0.0001554]
[1769410681269,0.01136983,87952.0,87940.0,0.0001554]
[1769410681469,0.01136996,87951.0,87940.0,0.0001554]
[1769410681674,0.46596316,87950.0,87940.0,0.0001554]
[1769410682891,0.01136983,87952.0,87940.0,0.0001554]
[1769410683333,0.01136996,87951.0,87940.0,0.0001554]
[1769410683569,0.01136945,87955.0,87940.0,0.0001554]
[1769410683746,0.46596316,87950.0,87940.0,0.0001554]
[1769410683946,0.01136945,87955.0,87940.0,0.0001554]
[1769410684446,0.0113697,87953.0,87940.0,0.0001554]
[1769410684646,0.01136996,87951.0,87940.0,0.0001554]
[1769410685309,0.01136983,87952.0,87940.0,0.0001554]
[1769410685532,0.0113697,87953.0,87940.0,0.0001554]
[1769410685827,0.01136945,87955.0,87940.0,0.0001554]
[1769410686580,0.01136932,87956.0,87940.0,0.0001554]
[1769410686781,0.01136945,87955.0,87940.0,0.0001554]
[1769410687572,0.01136957,87954.0,87940.0,0.0001554]
[1769410687775,0.01136945,87955.0,87940.0,0.0001554]
[1769410687974,0.01136932,87956.0,87940.0,0.0001554]
[1769410688809,0.01136945,87955.0,87940.0,0.0001554]
[1769410689736,0.01136854,87962.0,87940.0,0.0001554]
[1769410689959,0.01136919,87957.0,87940.0,0.0001554]
[1769410690646,0.01136932,87956.0,87940.0,0.0001554]
[1769410691474,0.01136906,87958.0,87940.0,0.0001554]
[1769410692471,0.01136919,87957.0,87940.0,0.0001554]
[1769410692900,0.01136906,87958.0,87940.0,0.0001554]
[1769410693482,0.01136893,87959.0,87940.0,0.0001554]
[1769410693691,0.01136867,87961.0,87940.0,0.46611856]
[1769410693831,0.46596316,87960.0,87940.0,0.46611856]
[1769410694700,0.01136841,87963.0,87940.0,0.46611856]
[1769410694904,0.01136828,87964.0,87940.0,0.46611856]
[1769410695105,0.01136841,87963.0,87940.0,0.46611856]
[1769410696148,0.01136854,87962.0,87940.0,0.46611856]
[1769410696560,0.01136867,87961.0,87940.0,0.46611856]
[1769410696733,0.01136854,87962.0,87940.0,0.46611856]
[1769410696973,0.01136867,87961.0,87940.0,0.46611856]
[1769410697505,0.06820912,87965.0,87940.0,0.46611856]
[1769410697506,0.01136699,87974.0,87950.0,0.46596316]
[1769410697663,0.01136751,87970.0,87950.0,0.46596316]
[1769410698000,0.01136789,87967.0,87950.0,0.46596316]
[1769410698167,0.01136789,87967.0,87943.0,0.0001554]
[1769410698570,0.01136802,87966.0,87943.0,0.0001554]
[1769410698786,0.01136815,87965.0,87943.0,0.0001554]
[1769410700782,0.01136815,87965.0,87943.0,0.0228974]
[1769410701336,0.01136828,87964.0,87943.0,0.0228974]
[1769410701481,0.01136815,87965.0,87943.0,0.0228974]
[1769410702018,0.01136828,87964.0,87943.0,0.0228974]
[1769410702249,0.01136815,87965.0,87943.0,0.0228974]
[1769410702427,0.01136815,87965.0,87943.0,0.0001554]
[1769410703022,0.01136815,87965.0,87943.0,0.0228974]
[1769410703230,0.01136828,87964.0,87943.0,0.0228974]
[1769410703440,0.01136841,87963.0,87943.0,0.0001554]
[1769410703633,0.01136854,87962.0,87943.0,0.0001554]
[1769410703973,0.01136828,87964.0,87943.0,0.0001554]
[1769410704174,0.01136854,87962.0,87943.0,0.0001554]
[1769410705176,0.01136867,87961.0,87943.0,0.0001554]
[1769410705762,0.01136854,87962.0,87943.0,0.0001554]
[1769410706082,0.01136867,87961.0,87943.0,0.0001554]
[1769410707599,0.0113688,87960.0,87943.0,0.0001554]
[1769410708194,0.01136893,87959.0,87943.0,0.0001554]
[1769410708736,0.0113688,87960.0,87943.0,0.0001554]
[1769410708936,0.46591868,87970.0,87949.0,0.46591868]
[1769410709117,0.05683934,87968.0,87943.0,0.0001554]
[1769410709440,0.01136841,87963.0,87943.0,0.0001554]
[1769410709597,0.01136854,87962.0,87943.0,0.0001554]
[1769410710002,0.01136841,87963.0,87943.0,0.0001554]
[1769410710723,0.01136854,87962.0,87943.0,0.0001554]
[1769410710928,0.01136867,87961.0,87943.0,0.0001554]
[1769410711267,0.0113688,87960.0,87943.0,0.0001554]
[1769410712366,0.01136893,87959.0,87943.0,0.0001554]
[1769410713530,0.01136854,87962.0,87943.0,0.0001554]
[1769410713725,0.05684427,87960.0,87943.0,0.0001554]
[1769410713937,0.01136893,87959.0,87943.0,0.0001554]
[1769410714344,0.01136906,87958.0,87943.0,0.0001554]
[1769410714838,0.46591868,87960.0,87943.0,0.0001554]
[1769410715041,0.01136945,87955.0,87943.0,0.0001554]
[1769410715246,0.0113697,87953.0,87943.0,0.0001554]
[1769410715559,0.01136983,87952.0,87943.0,0.0001554]
[1769410715983,0.01136957,87954.0,87943.0,0.0001554]
[1769410716569,0.0113697,87953.0,87943.0,0.0001554]
[1769410717168,0.01136983,87952.0,87943.0,0.0001554]
[1769410717403,0.0113697,87953.0,87943.0,0.0001554]
[1769410718084,0.01136983,87952.0,87943.0,0.0001554]
[1769410718400,0.01136996,87951.0,87943.0,0.0001554]
[1769410719109,0.17778813,87946.0,87935.0,0.04548]
[1769410719474,0.01137074,87945.0,87935.0,0.04548]
[1769410720109,0.17778813,87946.0,87935.0,0.04548]
[1769410720110,0.16641752,87946.0,87935.0,0.04548]
[1769410720443,0.16641752,87946.0,87935.0,0.0456626]
[1769410720444,0.01137074,87945.0,87935.0,0.0456626]
[1769410720568,0.17778813,87946.0,87935.0,0.0456626]
[1769410720777,0.16641752,87955.0,87936.0,0.17840484]
[1769410721015,0.01136957,87954.0,87940.0,0.46591868]
[1769410721213,0.01136957,87954.0,87940.0,0.46610128]
[1769410721753,0.16641752,87955.0,87940.0,0.46610128]
[1769410722079,0.01136957,87954.0,87940.0,0.46610128]
[1769410722283,0.0113697,87953.0,87940.0,0.0001826]
[1769410723458,0.16641752,87955.0,87940.0,0.0001826]
[1769410723809,0.0113697,87953.0,87940.0,0.0001826]
[1769410724837,0.01136983,87952.0,87940.0,0.0001826]
[1769410725040,0.0113697,87953.0,87940.0,0.0001826]
[1769410725897,0.01136983,87952.0,87940.0,0.0001826]
[1769410726379,0.01136996,87951.0,87940.0,0.0001826]
[1769410727055,0.01136983,87952.0,87940.0,0.0001826]
[1769410727254,0.01136996,87951.0,87940.0,0.0001826]
[1769410727673,0.01137022,87949.0,87940.0,0.0001826]
[1769410728092,0.01136983,87952.0,87940.0,0.0001826]
[1769410728403,0.01136996,87951.0,87940.0,0.0001826]
[1769410729130,0.01137009,87950.0,87940.0,0.0001826]
[1769410729426,0.01137035,87948.0,87940.0,0.0001826]
[1769410729780,0.01137022,87949.0,87940.0,0.0001826]
[1769410730911,0.01137035,87948.0,87940.0,0.0001826]
[1769410731084,0.01137048,87947.0,87940.0,0.0001826]
[1769410734339,0.0113688,87960.0,87940.0,0.0001826]
[1769410734525,0.01136957,87954.0,87940.0,0.0001826]
[1769410735068,0.01136983,87952.0,87940.0,0.0001826]
[1769410735217,0.01136996,87951.0,87940.0,0.0001826]
[1769410737437,0.01136983,87952.0,87940.0,0.0001826]
[1769410739170,0.01136996,87951.0,87940.0,0.0001826]
[1769410739402,0.01136983,87952.0,87940.0,0.0001826]
[1769410739734,0.0113697,87953.0,87940.0,0.0001826]
[1769410739922,0.01136945,87955.0,87940.0,0.0001826]
[1769410740108,0.0113697,87953.0,87940.0,0.0001826]
[1769410740293,0.01136957,87954.0,87940.0,0.0001826]
[1769410740500,0.01136983,87952.0,87940.0,0.0001826]
[1769410740716,0.0113697,87953.0,87940.0,0.0001826]
[1769410741102,0.06821832,87953.0,87940.0,0.0001826]
[1769410741302,0.01136983,87952.0,87940.0,0.0001826]
[1769410742560,0.01136996,87951.0,87940.0,0.0001826]
[1769410743096,0.01136996,87951.0,87937.0,0.15830421]
[1769410743462,0.01136945,87955.0,87938.0,0.20491114]
[1769410743639,0.01136957,87954.0,87940.0,0.15830421]
[1769410743856,0.01136957,87954.0,87941.0,0.20491114]
[1769410744055,0.0113697,87953.0,87941.0,0.20491114]
[1769410744459,0.01136983,87952.0,87941.0,0.20491114]
[1769410744663,0.01136957,87954.0,87941.0,0.20491114]
[1769410745069,0.01136983,87952.0,87941.0,0.20491114]
[1769410745395,0.01136996,87951.0,87941.0,0.20491114]
[1769410746231,0.01137009,87950.0,87941.0,0.22765366]
[1769410747102,0.01137009,87950.0,87931.0,0.0001604]
[1769410747103,0.01137061,87946.0,87931.0,0.0001604]
[1769410747311,0.06822483,87945.0,87932.0,0.36973731]
[1769410747466,0.01137087,87944.0,87933.0,0.20491114]
[1769410747656,0.01137074,87945.0,87934.0,0.20491114]
[1769410747861,0.01137087,87944.0,87934.0,0.20491114]
[1769410748062,0.01137074,87945.0,87934.0,0.20491114]
[1769410748916,0.01137087,87944.0,87934.0,0.20491114]
[1769410749929,0.01137074,87945.0,87934.0,0.20491114]
[1769410750131,0.01137061,87946.0,87934.0,0.20491114]
[1769410750328,0.01136983,87952.0,87935.0,0.20491114]
[1769410750488,0.01136983,87952.0,87931.0,0.0001604]
[1769410750489,0.01137035,87948.0,87937.0,0.20491114]
[1769410750693,0.01137009,87950.0,87937.0,0.20491114]
[1769410750694,0.01137022,87949.0,87937.0,0.20491114]
[1769410751323,0.01137035,87948.0,87937.0,0.20491114]
[1769410751518,0.01137022,87949.0,87937.0,0.20491114]
[1769410751723,0.01137035,87948.0,87937.0,0.20491114]
[1769410752304,0.01137048,87947.0,87937.0,0.20491114]
[1769410752505,0.01137035,87948.0,87937.0,0.20491114]
[1769410752928,0.01137048,87947.0,87937.0,0.20491114]
[1769410753802,0.01137061,87946.0,87937.0,0.20491114]
[1769410753959,0.01137048,87947.0,87937.0,0.20491114]
[1769410754545,0.01137061,87946.0,87937.0,0.20491114]
[1769410754915,0.06822068,87950.0,87937.0,0.20491114]
[1769410755064,0.01137035,87948.0,87937.0,0.20491114]
[1769410755670,0.01137048,87947.0,87937.0,0.20491114]
[1769410756243,0.01137035,87948.0,87937.0,0.20491114]
[1769410756451,0.01137048,87947.0,87937.0,0.20491114]
[1769410758138,0.01137074,87945.0,87937.0,0.20491114]
[1769410758282,0.01137074,87945.0,87931.0,0.0001604]
[1769410758472,0.01137074,87945.0,87931.0,0.20507154]
[1769410758681,0.01137061,87946.0,87932.0,0.20491114]
[1769410758888,0.01137048,87947.0,87933.0,0.15893223]
[1769410759100,0.01137048,87947.0,87934.0,0.20491114]
[1769410759509,0.01137074,87945.0,87934.0,0.20491114]
[1769410759708,0.01137048,87947.0,87934.0,0.20491114]
[1769410760107,0.05684966,87952.0,87934.0,0.20491114]
[1769410760352,0.01136983,87952.0,87936.0,0.20491114]
[1769410760570,0.01136983,87952.0,87938.0,0.20491114]
[1769410762319,0.0113697,87953.0,87938.0,0.20491114]
[1769410762582,0.21779193,87955.0,87938.0,0.20491114]
[1769410762583,0.01136957,87954.0,87938.0,0.15893223]
[1769410762887,0.0113697,87953.0,87938.0,0.15893223]
[1769410765953,0.01136983,87952.0,87938.0,0.15893223]
[1769410766479,0.01137009,87950.0,87938.0,0.15893223]
[1769410767042,0.01137061,87946.0,87931.0,0.0001604]
[1769410767220,0.01137074,87945.0,87931.0,0.0001604]
[1769410767419,0.01137126,87941.0,87931.0,0.0001604]
[1769410767619,0.01137164,87938.0,87931.0,0.0001604]
[1769410768520,0.01137151,87939.0,87931.0,0.0001604]
[1769410768918,0.01137164,87938.0,87931.0,0.0001604]
[1769410770170,0.01137177,87937.0,87931.0,0.0001604]
[1769410770568,0.45923803,87941.0,87931.0,0.0001604]
[1769410770769,0.0113719,87936.0,87931.0,0.0001604]
[1769410771157,0.01137216,87934.0,87931.0,0.0001604]
[1769410771356,0.01137203,87935.0,87931.0,0.0001604]
[1769410771752,0.01137216,87934.0,87931.0,0.0001604]
[1769410772495,0.0113719,87936.0,87931.0,0.0001604]
[1769410772653,0.41286509,87941.0,87931.0,0.0001604]
[1769410773054,0.42423635,87941.0,87931.0,0.0001604]
[1769410773255,0.01137164,87938.0,87931.0,0.0001604]
[1769410773460,0.01137177,87937.0,87931.0,0.0001604]
[1769410773662,0.01137164,87938.0,87931.0,0.0001604]
[1769410773982,0.01137177,87937.0,87931.0,0.0001604]
[1769410774180,0.01137164,87938.0,87931.0,0.0001604]
[1769410774500,0.01137177,87937.0,87931.0,0.0001604]
[1769410775062,0.01137164,87938.0,87931.0,0.0001604]
[1769410775461,0.01137177,87937.0,87931.0,0.0001604]
[1769410775663,0.01137164,87938.0,87931.0,0.0001604]
[1769410775890,0.16247311,87940.0,87931.0,0.0001604]
[1769410777639,0.01137035,87948.0,87931.0,0.0001604]
[1769410777835,0.01137048,87947.0,87931.0,0.25663748]
[1769410778041,0.01137035,87948.0,87932.0,0.16201301]
[1769410778233,0.01137035,87948.0,87933.0,0.25647708]
[1769410778436,0.16247311,87950.0,87933.0,0.25647708]
[1769410778633,0.16247311,87950.0,87931.0,0.0001604]
[1769410778634,0.01137022,87949.0,87936.0,0.16201301]
[1769410778862,0.01137022,87949.0,87937.0,0.25647708]
[1769410779046,0.16247311,87956.0,87937.0,0.25647708]
[1769410779205,0.01137009,87950.0,87937.0,0.25647708]
[1769410779613,0.01137022,87949.0,87937.0,0.25647708]
[1769410780164,0.01137009,87950.0,87937.0,0.25647708]
[1769410781234,0.06822086,87950.0,87937.0,0.25647708]
[1769410781556,0.01136983,87952.0,87937.0,0.25647708]
[1769410781735,0.01137009,87950.0,87937.0,0.25647708]
[1769410781942,0.01137022,87949.0,87938.0,0.25647708]
[1769410782718,0.01137035,87948.0,87938.0,0.25647708]
[1769410782940,0.01137022,87949.0,87938.0,0.25657588]
[1769410783118,0.01137048,87947.0,87938.0,0.25657588]
[1769410783339,0.01137022,87949.0,87938.0,0.25657588]
[1769410784885,0.01136957,87954.0,87938.0,0.25657588]
[1769410785104,0.0113697,87953.0,87940.0,0.16201301]
[1769410785312,0.0113697,87953.0,87941.0,0.25422833]
[1769410785495,0.01136996,87951.0,87942.0,0.25422833]
[1769410785749,0.01136983,87952.0,87942.0,0.25422833]
[1769410785943,0.01136919,87957.0,87942.0,0.25422833]
[1769410786102,0.01136957,87954.0,87942.0,0.25422833]
[1769410787250,0.0113697,87953.0,87942.0,0.25422833]
[1769410787457,0.01136957,87954.0,87942.0,0.25422833]
[1769410787702,0.0113697,87953.0,87942.0,0.25422833]
[1769410788329,0.01136983,87952.0,87942.0,0.25422833]
[1769410788539,0.01136996,87951.0,87942.0,0.25422833]
[1769410788748,0.01136983,87952.0,87942.0,0.25422833]
[1769410789215,0.01136996,87951.0,87942.0,0.25422833]
[1769410789423,0.01136983,87952.0,87942.0,0.25422833]
[1769410790259,0.01136996,87951.0,87942.0,0.25422833]
[1769410790470,0.09092483,87987.0,87942.0,0.25422833]
[1769410790682,0.01136996,87951.0,87942.0,0.25422833]
[1769410790882,0.01137061,87946.0,87938.0,9.88e-05]
[1769410791091,0.01137048,87947.0,87938.0,9.88e-05]
[1769410791725,0.01137061,87946.0,87938.0,9.88e-05]
[1769410793795,0.23069448,87949.0,87938.0,9.88e-05]
[1769410793980,0.01137048,87947.0,87938.0,9.88e-05]
[1769410794784,0.01137035,87948.0,87938.0,9.88e-05]
[1769410796362,0.01137061,87946.0,87938.0,9.88e-05]
[1769410796692,0.01137087,87944.0,87938.0,9.88e-05]
[1769410798005,0.01137074,87945.0,87938.0,9.88e-05]
[1769410798566,0.01137048,87947.0,87938.0,9.88e-05]
[1769410798979,0.01137074,87945.0,87938.0,9.88e-05]
[1769410799204,0.01137061,87946.0,87938.0,9.88e-05]
[1769410799826,0.01137022,87949.0,87938.0,9.88e-05]
[1769410800032,0.01137048,87947.0,87938.0,9.88e-05]
[1769410800670,0.01137022,87949.0,87938.0,9.88e-05]
[1769410801511,0.0113697,87953.0,87938.0,9.88e-05]
[1769410801723,0.01137009,87950.0,87938.0,0.20934961]
[1769410801873,0.01137048,87947.0,87938.0,0.20934961]
[1769410802082,0.01137061,87946.0,87938.0,0.20934961]
[1769410802280,0.4660435,87950.0,87930.0,5.835e-05]
[1769410802281,0.01137216,87934.0,87930.0,5.835e-05]
[1769410802725,0.16247311,87932.0,87921.0,0.0001449]
[1769410802902,6.362e-05,87932.0,87921.0,0.0001449]
[1769410803105,6.362e-05,87932.0,87923.0,0.2047527]
[1769410803312,0.01137061,87946.0,87927.0,0.2047527]
[1769410803491,0.01137061,87946.0,87921.0,0.0001449]
[1769410803492,0.01143438,87945.0,87932.0,6.362e-05]
[1769410804087,0.011371,87943.0,87932.0,6.362e-05]
[1769410805125,0.01137113,87942.0,87932.0,6.362e-05]
[1769410805545,0.16253675,87945.0,87932.0,6.362e-05]
[1769410805749,0.01137113,87942.0,87932.0,6.362e-05]
[1769410805909,0.011371,87943.0,87932.0,6.362e-05]
[1769410806105,0.01137113,87942.0,87932.0,6.362e-05]
[1769410806310,0.01137126,87941.0,87932.0,6.362e-05]
[1769410806555,0.17390749,87945.0,87932.0,6.362e-05]
[1769410806758,6.364e-05,87945.0,87932.0,6.362e-05]
[1769410806970,6.364e-05,87945.0,87934.0,0.19800606]
[1769410807174,6.364e-05,87945.0,87938.0,0.19800606]
[1769410807338,6.364e-05,87945.0,87933.0,0.35921522]
[1769410807536,6.364e-05,87945.0,87931.0,0.0227451]
[1769410807537,6.364e-05,87945.0,87934.0,0.0209906]
[1769410807758,6.364e-05,87945.0,87931.0,0.01965104]
[1769410808487,0.01143438,87945.0,87933.0,0.19575704]
[1769410808662,0.01143438,87945.0,87932.0,0.16120916]
[1769410808663,6.364e-05,87945.0,87934.0,0.21850137]
[1769410808866,6.364e-05,87945.0,87935.0,0.19575704]
[1769410809063,6.364e-05,87945.0,87935.0,0.16120916]
[1769410809277,6.364e-05,87945.0,87936.0,0.19575704]
[1769410809658,0.01143438,87945.0,87936.0,0.19575704]
[1769410810261,6.364e-05,87945.0,87936.0,0.19575704]
[1769410810463,0.01143438,87945.0,87936.0,0.19575704]
[1769410810661,0.01137087,87944.0,87936.0,0.19575704]
[1769410811092,0.011371,87943.0,87936.0,0.19575704]
[1769410811298,0.01137087,87944.0,87936.0,0.19575704]
[1769410811656,0.011371,87943.0,87936.0,0.19575704]
[1769410811969,0.01137113,87942.0,87936.0,0.19575704]
[1769410812193,0.01137151,87939.0,87930.0,0.19125949]
[1769410812511,0.0113719,87936.0,87923.0,0.19125949]
[1769410812706,0.01137177,87937.0,87923.0,0.19125949]
[1769410812920,0.01137203,87935.0,87923.0,0.19125949]
[1769410813223,0.01137255,87931.0,87921.0,0.0001449]
[1769410813422,0.4660435,87933.0,87912.0,0.0001449]
[1769410813423,0.01137345,87924.0,87912.0,0.0001449]
[1769410813585,0.01137358,87923.0,87912.0,0.0001449]
[1769410814220,0.01137345,87924.0,87912.0,0.0001449]
[1769410814451,0.06824216,87923.0,87912.0,0.0001449]
[1769410814628,0.0113741,87919.0,87912.0,0.0001449]
[1769410815465,0.01137397,87920.0,87912.0,0.0001449]
[1769410815767,0.01137371,87922.0,87912.0,0.0001449]
[1769410816145,0.01137384,87921.0,87912.0,0.0001449]
[1769410816345,0.01137371,87922.0,87912.0,0.0001449]
[1769410816950,0.01137423,87918.0,87912.0,0.0001449]
[1769410817156,0.0113741,87919.0,87912.0,0.0001449]
[1769410817338,0.01137397,87920.0,87912.0,0.0001449]
[1769410817545,0.0113741,87919.0,87912.0,0.0001449]
[1769410817727,0.01137423,87918.0,87912.0,0.0001449]
[1769410817929,0.01137397,87920.0,87912.0,0.0001449]
[1769410818125,0.01137384,87921.0,87912.0,0.0002849]
[1769410818427,0.01137371,87922.0,87912.0,0.0002849]
[1769410818849,0.01137397,87920.0,87912.0,0.0002849]
[1769410819211,0.01137384,87921.0,87912.0,0.0002849]
[1769410819964,0.01137332,87925.0,87912.0,0.16112773]
[1769410820165,0.01137345,87924.0,87912.0,0.16112773]
[1769410820371,0.01137358,87923.0,87912.0,0.16112773]
[1769410820568,0.01137384,87921.0,87912.0,0.16112773]
[1769410820774,0.0113741,87919.0,87912.0,0.0002849]
[1769410820977,0.01137423,87918.0,87912.0,0.0002849]
[1769410821177,0.0113741,87919.0,87912.0,0.0002849]
[1769410821390,0.01137423,87918.0,87912.0,0.0002849]
[1769410821788,0.01137462,87915.0,87912.0,0.0002849]
[1769410821971,0.01137501,87912.0,87903.0,0.0001449]
[1769410822169,0.01137514,87911.0,87903.0,0.00020852]
[1769410822373,0.01137462,87915.0,87903.0,0.00020852]
[1769410822580,0.17703308,87919.0,87903.0,0.00020852]
[1769410822780,0.01137423,87918.0,87903.0,0.00020852]
[1769410822980,0.17703308,87919.0,87904.0,0.18676158]
[1769410823181,0.17703308,87919.0,87904.0,0.34760441]
[1769410823182,0.0113741,87919.0,87904.0,0.34760441]
[1769410823451,0.0113741,87919.0,87904.0,0.34733381]
[1769410823658,0.47741747,87920.0,87905.0,0.18662628]
[1769410823777,0.4660435,87920.0,87905.0,0.18662628]
[1769410823980,0.47741747,87920.0,87905.0,0.18662628]
[1769410824185,0.4660435,87920.0,87905.0,0.18662628]
[1769410824395,0.47741747,87920.0,87905.0,0.18662628]
[1769410824635,0.4660435,87920.0,87905.0,0.18662628]
[1769410825054,0.01155794,87921.0,87905.0,0.18662628]
[1769410825605,0.01137488,87913.0,87896.0,0.18662628]
[1769410825899,0.16565898,87915.0,87895.0,0.16124283]
[1769410825900,0.23390677,87915.0,87898.0,0.00032323]
[1769410826105,0.01137501,87912.0,87899.0,0.18662628]
[1769410826300,0.01137501,87912.0,87900.0,0.18662628]
[1769410826511,0.0113741,87919.0,87903.0,0.18662628]
[1769410826718,0.01137436,87917.0,87903.0,0.34746911]
[1769410827153,0.0001841,87921.0,87903.0,0.34746911]
[1769410827360,0.01137397,87920.0,87900.0,0.46656187]
[1769410827539,0.0113741,87919.0,87902.0,0.18662628]
[1769410827747,0.0113741,87919.0,87903.0,0.16084283]
[1769410827950,0.0001841,87921.0,87900.0,0.46656187]
[1769410828149,0.01155794,87921.0,87900.0,0.46656187]
[1769410828383,0.0113741,87919.0,87902.0,0.18662628]
[1769410828584,0.0113741,87919.0,87905.0,0.16084283]
[1769410828761,0.0113741,87919.0,87906.0,0.16084283]
[1769410828963,0.01155794,87921.0,87907.0,0.18662628]
[1769410829204,0.01155794,87921.0,87908.0,0.16084283]
[1769410829390,0.01155794,87921.0,87910.0,0.46656187]
[1769410829703,0.01137397,87920.0,87910.0,0.18662628]
[1769410830264,0.01155794,87921.0,87910.0,0.18646865]
[1769410830464,0.01155794,87921.0,87898.0,0.00032323]
[1769410830466,0.05687906,87906.0,87898.0,0.00032323]
[1769410830688,0.01137643,87901.0,87898.0,0.00032323]
[1769410830849,0.01137643,87901.0,87895.0,0.0004]
[1769410831052,0.17703515,87903.0,87895.0,0.0004]
[1769410831305,0.01137656,87900.0,87895.0,0.0004]
[1769410831509,0.01137643,87901.0,87895.0,0.0004]
[1769410831872,0.01137656,87900.0,87895.0,0.0004]
[1769410832399,0.01137669,87899.0,87895.0,0.0004]
[1769410832794,0.0113763,87902.0,87895.0,0.0004]
[1769410833212,0.01137643,87901.0,87895.0,0.0004]
[1769410833535,0.01137669,87899.0,87895.0,0.0004]
[1769410833738,0.06826312,87896.0,87888.0,0.0004]
[1769410833894,0.01137747,87893.0,87888.0,0.00053986]
[1769410834095,0.01137772,87891.0,87888.0,0.00053986]
[1769410834317,0.17703683,87890.0,87874.0,0.18429901]
[1769410834519,0.01137811,87888.0,87877.0,0.00023289]
[1769410834700,0.16873085,87929.0,87877.0,0.00023289]
[1769410834701,0.001,87899.0,87877.0,0.00023289]
[1769410834904,0.01137721,87895.0,87878.0,0.16663456]
[1769410835085,0.001,87899.0,87881.0,0.16663456]
[1769410835282,0.01137682,87898.0,87884.0,0.18429901]
[1769410835503,0.05689695,87897.0,87887.0,0.16663456]
[1769410836568,0.01137708,87896.0,87887.0,0.16663456]
[1769410836804,0.01137721,87895.0,87886.0,0.18429901]
[1769410837036,0.01137734,87894.0,87881.0,0.35093357]
[1769410837201,0.04552,87896.0,87877.0,0.00023289]
[1769410837417,0.05689708,87896.0,87881.0,0.18429901]
[1769410837616,0.01137734,87894.0,87883.0,0.18429901]
[1769410838020,0.01137785,87890.0,87883.0,0.18429901]
[1769410838227,0.01137759,87892.0,87883.0,0.18429901]
[1769410838477,0.0568861,87895.0,87877.0,0.00023289]
[1769410838478,0.04552,87896.0,87884.0,0.16663456]
[1769410838646,0.04552,87896.0,87886.0,0.16663456]
[1769410838859,0.05689708,87896.0,87886.0,0.16663456]
[1769410839647,0.01137721,87895.0,87886.0,0.16663456]
[1769410840000,0.01137721,87895.0,87885.0,0.18205035]
[1769410840204,0.05689708,87896.0,87885.0,0.18205035]
[1769410840399,0.01137721,87895.0,87885.0,0.18205035]
[1769410840600,0.01137747,87893.0,87881.0,0.16663456]
[1769410840811,0.01137759,87892.0,87881.0,0.16663456]
[1769410841127,0.01137759,87892.0,87879.0,0.18205035]
[1769410842009,0.04552,87896.0,87880.0,0.16663456]
[1769410842215,0.01137721,87895.0,87882.0,0.34868491]
[1769410842448,0.05689708,87896.0,87877.0,0.00023289]
[1769410842840,0.05689708,87896.0,87878.0,0.34868491]
[1769410843043,0.04552,87896.0,87877.0,0.00023289]
[1769410843244,0.01137669,87899.0,87877.0,0.00023289]
[1769410843446,0.04552,87895.0,87877.0,0.02299197]
[1769410843826,0.04552,87895.0,87878.0,0.16663456]
[1769410844038,0.04552,87895.0,87879.0,0.17980153]
[1769410844270,0.04552,87895.0,87882.0,0.16663456]
[1769410844475,0.07888258,87899.0,87885.0,0.17980153]
[1769410844675,0.04552,87897.0,87886.0,0.16663456]
[1769410844873,0.04552,87897.0,87887.0,0.17980153]
[1769410845627,0.05689695,87897.0,87887.0,0.17980153]
[1769410846260,0.01137708,87896.0,87887.0,0.17980153]
[1769410846452,0.01137708,87896.0,87877.0,0.00023289]
[1769410846669,0.01137721,87895.0,87877.0,0.00023289]
[1769410847051,0.01137747,87893.0,87879.0,0.17980153]
[1769410847260,0.01137759,87892.0,87881.0,0.17980153]
[1769410848205,0.01137772,87891.0,87881.0,0.17980153]
[1769410848399,0.01137759,87892.0,87881.0,0.17980153]
[1769410848601,0.01137785,87890.0,87881.0,0.17980153]
[1769410848802,0.01137759,87892.0,87881.0,0.17980153]
[1769410849042,0.04552,87897.0,87877.0,0.00023289]
[1769410849043,0.009429,87881.0,87877.0,0.00023289]
[1769410849209,0.01137811,87888.0,87877.0,0.00023289]
[1769410849210,0.01137863,87884.0,87877.0,0.00023289]
[1769410849419,0.47794011,87887.0,87877.0,0.00023289]
[1769410849623,0.46656187,87887.0,87877.0,0.00023289]
[1769410849802,0.01137824,87887.0,87877.0,0.00023289]
[1769410850198,0.01137811,87888.0,87877.0,0.00023289]
[1769410850399,0.01137824,87887.0,87877.0,0.00023289]
[1769410850602,0.01137837,87886.0,87877.0,0.00023289]
[1769410850801,0.01137824,87887.0,87877.0,0.00023289]
[1769410852204,0.47793972,87890.0,87877.0,0.00023289]
[1769410852707,0.01137811,87888.0,87877.0,0.00023289]
[1769410853001,0.01137798,87889.0,87877.0,0.00023289]
[1769410853251,0.01137811,87888.0,87877.0,0.00023289]
[1769410853441,0.01137824,87887.0,87877.0,0.00023289]
[1769410853863,0.01137747,87893.0,87877.0,0.00023289]
[1769410854005,0.46656187,87890.0,87877.0,0.16686745]
[1769410854738,0.46656187,87890.0,87877.0,0.34442016]
[1769410856231,0.47793972,87890.0,87877.0,0.34442016]
[1769410856820,0.46656187,87890.0,87877.0,0.34442016]
[1769410857267,0.47793972,87890.0,87877.0,0.34442016]
[1769410857668,0.01137798,87889.0,87877.0,0.34442016]
[1769410858074,0.01137811,87888.0,87877.0,0.34442016]